fUST/lending_fUST_20260503
["ID","MTS","AMOUNT","RATE_DAILY","PERIOD"]
[421506385,1777780245000,-151.0,0.00016438,2]
[421506387,1777780245000,-151.0,0.00016438,2]
[421506386,1777780245000,-151.0,0.00016438,2]
[421506390,1777780245000,-151.0,0.00016438,2]
[421506388,1777780245000,-151.0,0.00016438,2]
[421506389,1777780245000,-151.0,0.00016438,2]
[421506391,1777780245000,-243.944272,0.00016438,2]
[421506392,1777780245000,-4204.723683,0.00016438,2]
[421506341,1777780245000,-151.0,0.00016438,2]
[421506371,1777780245000,-151.0,0.00016438,2]
[421506367,1777780245000,-151.0,0.00016438,2]
[421506381,1777780245000,-151.0,0.00016438,2]
[421506368,1777780245000,-151.0,0.00016438,2]
[421506340,1777780245000,-151.0,0.00016438,2]
[421506365,1777780245000,-215.12935,0.00016438,2]
[421506338,1777780245000,-151.0,0.00016438,2]
[421506339,1777780245000,-151.0,0.00016438,2]
[421506343,1777780245000,-151.0,0.00016438,2]
[421506344,1777780245000,-151.0,0.00016438,2]
[421506345,1777780245000,-151.0,0.00016438,2]
[421506349,1777780245000,-151.0,0.00016438,2]
[421506348,1777780245000,-151.661452,0.00016438,2]
[421506347,1777780245000,-154.816161,0.00016438,2]
[421506351,1777780245000,-151.0,0.00016438,2]
[421506354,1777780245000,-151.0,0.00016438,2]
[421506346,1777780245000,-151.0,0.00016438,2]
[421506353,1777780245000,-151.0,0.00016438,2]
[421506358,1777780245000,-151.0,0.00016438,2]
[421506356,1777780245000,-151.0,0.00016438,2]
[421506355,1777780245000,-151.0,0.00016438,2]
[421506359,1777780245000,-151.0,0.00016438,2]
[421506357,1777780245000,-151.0,0.00016438,2]
[421506360,1777780245000,-151.0,0.00016438,2]
[421506361,1777780245000,-151.0,0.00016438,2]
[421506363,1777780245000,-151.0,0.00016438,2]
[421506362,1777780245000,-151.0,0.00016438,2]
[421506364,1777780245000,-151.0,0.00016438,2]
[421506435,1777780246000,-212.403353,0.00016438,2]
[421506431,1777780246000,-212.403353,0.00016438,2]
[421506433,1777780246000,-212.403353,0.00016438,2]
[421506432,1777780246000,-212.403353,0.00016438,2]
[421506434,1777780246000,-212.403353,0.00016438,2]
[421506429,1777780246000,-212.403353,0.00016438,2]
[421506430,1777780246000,-212.403353,0.00016438,2]
[421506427,1777780246000,-212.403353,0.00016438,2]
[421506425,1777780246000,-212.403353,0.00016438,2]
[421506428,1777780246000,-212.403353,0.00016438,2]
[421506436,1777780246000,-212.403353,0.00016438,2]
[421506426,1777780246000,-212.403353,0.00016438,2]
[421506438,1777780246000,-212.403353,0.00016438,2]
[421506449,1777780246000,-151.0,0.00016438,2]
[421506439,1777780246000,-212.403353,0.00016438,2]
[421506440,1777780246000,-212.40335,0.00016438,2]
[421506444,1777780246000,-151.0,0.00016438,2]
[421506442,1777780246000,-151.0,0.00016438,2]
[421506441,1777780246000,-152.792744,0.00016438,2]
[421506445,1777780246000,-151.0,0.00016438,2]
[421506443,1777780246000,-151.0,0.00016438,2]
[421506448,1777780246000,-151.0,0.00016438,2]
[421506446,1777780246000,-151.39275,0.00016438,2]
[421506452,1777780246000,-295.937174,0.00016438,2]
[421506453,1777780246000,-257.284517,0.00016438,2]
[421506424,1777780246000,-212.403353,0.00016438,2]
[421506437,1777780246000,-212.403353,0.00016438,2]
[421506422,1777780246000,-212.403353,0.00016438,2]
[421506397,1777780246000,-151.0,0.00016438,2]
[421506423,1777780246000,-212.403353,0.00016438,2]
[421506393,1777780246000,-151.0,0.00016438,2]
[421506394,1777780246000,-151.0,0.00016438,2]
[421506396,1777780246000,-151.0,0.00016438,2]
[421506395,1777780246000,-151.0,0.00016438,2]
[421506450,1777780246000,-151.0,0.00016438,2]
[421506398,1777780246000,-151.0,0.00016438,2]
[421506399,1777780246000,-151.0,0.00016438,2]
[421506400,1777780246000,-151.0,0.00016438,2]
[421506402,1777780246000,-151.0,0.00016438,2]
[421506401,1777780246000,-160.478965,0.00016438,2]
[421506403,1777780246000,-151.0,0.00016438,2]
[421506404,1777780246000,-151.0,0.00016438,2]
[421506405,1777780246000,-151.0,0.00016438,2]
[421506409,1777780246000,-151.0,0.00016438,2]
[421506410,1777780246000,-151.0,0.00016438,2]
[421506407,1777780246000,-151.0,0.00016438,2]
[421506408,1777780246000,-151.0,0.00016438,2]
[421506411,1777780246000,-274.009798,0.00016438,2]
[421506412,1777780246000,-151.0,0.00016438,2]
[421506414,1777780246000,-151.0,0.00016438,2]
[421506413,1777780246000,-151.089962,0.00016438,2]
[421506416,1777780246000,-151.0,0.00016438,2]
[421506415,1777780246000,-151.0,0.00016438,2]
[421506418,1777780246000,-151.0,0.00016438,2]
[421506417,1777780246000,-151.0,0.00016438,2]
[421506419,1777780246000,-151.0,0.00016438,2]
[421506420,1777780246000,-155.221944,0.00016438,2]
[421506421,1777780246000,-212.403353,0.00016438,2]
[421506454,1777780246000,-257.284517,0.00016438,2]
[421506447,1777780246000,-151.0,0.00016438,2]
[421506455,1777780246000,-257.284517,0.00016438,2]
[421506486,1777780246000,-251.955344,0.00016438,2]
[421506490,1777780246000,-771.042701,0.00016438,2]
[421506488,1777780246000,-771.042701,0.00016438,2]
[421506493,1777780246000,-771.042701,0.00016438,2]
[421506492,1777780246000,-771.042701,0.00016438,2]
[421506495,1777780246000,-771.042701,0.00016438,2]
[421506491,1777780246000,-251.955344,0.00016438,2]
[421506489,1777780246000,-251.955344,0.00016438,2]
[421506494,1777780246000,-151.0,0.00016438,2]
[421506498,1777780246000,-151.0,0.00016438,2]
[421506497,1777780246000,-771.042701,0.00016438,2]
[421506496,1777780246000,-251.955344,0.00016438,2]
[421506499,1777780246000,-251.955344,0.00016438,2]
[421506501,1777780246000,-151.0,0.00016438,2]
[421506503,1777780246000,-771.042701,0.00016438,2]
[421506502,1777780246000,-251.955344,0.00016438,2]
[421506509,1777780246000,-151.0,0.00016438,2]
[421506504,1777780246000,-151.0,0.00016438,2]
[421506510,1777780246000,-771.042701,0.00016438,2]
[421506506,1777780246000,-771.042701,0.00016438,2]
[421506507,1777780246000,-151.0,0.00016438,2]
[421506505,1777780246000,-251.955344,0.00016438,2]
[421506508,1777780246000,-251.955344,0.00016438,2]
[421506512,1777780246000,-251.955344,0.00016438,2]
[421506511,1777780246000,-151.0,0.00016438,2]
[421506513,1777780246000,-151.0,0.00016438,2]
[421506451,1777780246000,-151.0,0.00016438,2]
[421506487,1777780246000,-257.284513,0.00016438,2]
[421506485,1777780246000,-771.042701,0.00016438,2]
[421506500,1777780246000,-771.042701,0.00016438,2]
[421506480,1777780246000,-771.042701,0.00016438,2]
[421506481,1777780246000,-257.284517,0.00016438,2]
[421506457,1777780246000,-257.284517,0.00016438,2]
[421506458,1777780246000,-257.284517,0.00016438,2]
[421506459,1777780246000,-257.284517,0.00016438,2]
[421506461,1777780246000,-257.284517,0.00016438,2]
[421506460,1777780246000,-257.284517,0.00016438,2]
[421506463,1777780246000,-251.955344,0.00016438,2]
[421506462,1777780246000,-257.284517,0.00016438,2]
[421506464,1777780246000,-251.955344,0.00016438,2]
[421506465,1777780246000,-257.284517,0.00016438,2]
[421506470,1777780246000,-251.955344,0.00016438,2]
[421506468,1777780246000,-251.955344,0.00016438,2]
[421506466,1777780246000,-251.955344,0.00016438,2]
[421506469,1777780246000,-257.284517,0.00016438,2]
[421506456,1777780246000,-257.284517,0.00016438,2]
[421506478,1777780246000,-257.284517,0.00016438,2]
[421506467,1777780246000,-257.284517,0.00016438,2]
[421506483,1777780246000,-771.042701,0.00016438,2]
[421506482,1777780246000,-251.955344,0.00016438,2]
[421506479,1777780246000,-251.955344,0.00016438,2]
[421506477,1777780246000,-251.955344,0.00016438,2]
[421506484,1777780246000,-257.284517,0.00016438,2]
[421506474,1777780246000,-251.955344,0.00016438,2]
[421506475,1777780246000,-257.284517,0.00016438,2]
[421506473,1777780246000,-257.284517,0.00016438,2]
[421506471,1777780246000,-257.284517,0.00016438,2]
[421506472,1777780246000,-251.955344,0.00016438,2]
[421506476,1777780246000,-771.042701,0.00016438,2]
[421506554,1777780247000,-284.242475,0.00016438,2]
[421506562,1777780247000,-199.191142,0.00016438,2]
[421506556,1777780247000,-284.242475,0.00016438,2]
[421506555,1777780247000,-151.0,0.00016438,2]
[421506553,1777780247000,-159.751738,0.00016438,2]
[421506545,1777780247000,-151.0,0.00016438,2]
[421506552,1777780247000,-151.0,0.00016438,2]
[421506550,1777780247000,-151.0,0.00016438,2]
[421506551,1777780247000,-284.242475,0.00016438,2]
[421506548,1777780247000,-151.0,0.00016438,2]
[421506558,1777780247000,-284.242475,0.00016438,2]
[421506549,1777780247000,-284.242475,0.00016438,2]
[421506557,1777780247000,-151.0,0.00016438,2]
[421506560,1777780247000,-151.0,0.00016438,2]
[421506567,1777780247000,-151.0,0.00016438,2]
[421506559,1777780247000,-151.0,0.00016438,2]
[421506564,1777780247000,-284.242475,0.00016438,2]
[421506563,1777780247000,-284.242475,0.00016438,2]
[421506565,1777780247000,-151.0,0.00016438,2]
[421506566,1777780247000,-284.242475,0.00016438,2]
[421506576,1777780247000,-284.242475,0.00016438,2]
[421506575,1777780247000,-372.859625,0.00016438,2]
[421506514,1777780247000,-771.042701,0.00016438,2]
[421506571,1777780247000,-151.0,0.00016438,2]
[421506573,1777780247000,-284.242475,0.00016438,2]
[421506569,1777780247000,-151.0,0.00016438,2]
[421506572,1777780247000,-372.859625,0.00016438,2]
[421506570,1777780247000,-284.242475,0.00016438,2]
[421506561,1777780247000,-284.242475,0.00016438,2]
[421506547,1777780247000,-151.0,0.00016438,2]
[421506516,1777780247000,-251.955341,0.00016438,2]
[421506540,1777780247000,-284.242475,0.00016438,2]
[421506515,1777780247000,-151.0,0.00016438,2]
[421506517,1777780247000,-200.513032,0.00016438,2]
[421506520,1777780247000,-771.042701,0.00016438,2]
[421506519,1777780247000,-151.0,0.00016438,2]
[421506521,1777780247000,-239.001197,0.00016438,2]
[421506522,1777780247000,-771.042701,0.00016438,2]
[421506518,1777780247000,-771.042701,0.00016438,2]
[421506524,1777780247000,-771.042695,0.00016438,2]
[421506525,1777780247000,-2681.71,0.00016438,2]
[421506523,1777780247000,-771.042701,0.00016438,2]
[421506526,1777780247000,-2681.71,0.00016438,2]
[421506528,1777780247000,-228.732572,0.00016438,2]
[421506530,1777780247000,-151.0,0.00016438,2]
[421506546,1777780247000,-284.242475,0.00016438,2]
[421506529,1777780247000,-189.755752,0.00016438,2]
[421506536,1777780247000,-151.0,0.00016438,2]
[421506531,1777780247000,-151.0,0.00016438,2]
[421506532,1777780247000,-151.0,0.00016438,2]
[421506534,1777780247000,-151.0,0.00016438,2]
[421506533,1777780247000,-151.0,0.00016438,2]
[421506535,1777780247000,-151.0,0.00016438,2]
[421506538,1777780247000,-284.242475,0.00016438,2]
[421506537,1777780247000,-151.0,0.00016438,2]
[421506539,1777780247000,-151.0,0.00016438,2]
[421506542,1777780247000,-284.242475,0.00016438,2]
[421506541,1777780247000,-151.0,0.00016438,2]
[421506544,1777780247000,-284.242475,0.00016438,2]
[421506543,1777780247000,-151.0,0.00016438,2]
[421506527,1777780247000,-1340.84,0.00016438,2]
[421506574,1777780247000,-151.0,0.00016438,2]
[421506568,1777780247000,-284.242475,0.00016438,2]
[421506577,1777780247000,-151.0,0.00016438,2]
[421506612,1777780247000,-354.41741338,0.00016481,30]
[421506615,1777780247000,-354.41741338,0.00016557,30]
[421506614,1777780247000,-1596.98084962,0.00016543,2]
[421506627,1777780247000,-2876.18991768,0.00016782,2]
[421506616,1777780247000,-2063.41285318,0.000166,2]
[421506626,1777780247000,-565.95559545,0.00016779,2]
[421506617,1777780247000,-354.41741338,0.00016633,30]
[421506618,1777780247000,-1596.98084962,0.00016635,2]
[421506621,1777780247000,-5591.63613129,0.00016696,3]
[421506623,1777780247000,-354.41741338,0.00016709,30]
[421506625,1777780247000,-164.20509711,0.00016768,2]
[421506624,1777780247000,-212.434621,0.00016728,2]
[421506620,1777780247000,-151.09,0.00016684,2]
[421506622,1777780247000,-160.0,0.000167,3]
[421506619,1777780247000,-456.9626887,0.00016668,2]
[421506628,1777780247000,-354.41741338,0.00016785,30]
[421506630,1777780247000,-3372.7061471,0.000168,2]
[421506629,1777780247000,-150.0799,0.00016789,2]
[421506632,1777780247000,-1596.98084962,0.0001684,2]
[421506631,1777780247000,-2063.41285318,0.000168,2]
[421506633,1777780247000,-1596.98084962,0.00016856,2]
[421506634,1777780247000,-354.41741338,0.00016861,30]
[421506636,1777780247000,-3776.2,0.000169,2]
[421506635,1777780247000,-44898.42891421,0.00016878,7]
[421506638,1777780247000,-630.54346373,0.00016917,30]
[421506637,1777780247000,-160.0,0.000169,7]
[421506640,1777780247000,-151.06,0.00016937,2]
[421506639,1777780247000,-354.41741338,0.00016937,30]
[421506578,1777780247000,-372.859625,0.00016438,2]
[421506611,1777780247000,-150.0799,0.0001646,2]
[421506607,1777780247000,-372.859625,0.00016438,2]
[421506585,1777780247000,-151.0,0.00016438,2]
[421506608,1777780247000,-529.950241,0.00016438,2]
[421506580,1777780247000,-151.0,0.00016438,2]
[421506613,1777780247000,-2063.41285318,0.000165,2]
[421506582,1777780247000,-372.859625,0.00016438,2]
[421506579,1777780247000,-284.242475,0.00016438,2]
[421506581,1777780247000,-284.242474,0.00016438,2]
[421506587,1777780247000,-151.0,0.00016438,2]
[421506588,1777780247000,-372.859625,0.00016438,2]
[421506584,1777780247000,-372.859625,0.00016438,2]
[421506586,1777780247000,-372.859625,0.00016438,2]
[421506590,1777780247000,-372.859625,0.00016438,2]
[421506589,1777780247000,-151.0,0.00016438,2]
[421506591,1777780247000,-151.0,0.00016438,2]
[421506598,1777780247000,-372.859625,0.00016438,2]
[421506594,1777780247000,-372.859625,0.00016438,2]
[421506583,1777780247000,-151.0,0.00016438,2]
[421506596,1777780247000,-372.859625,0.00016438,2]
[421506595,1777780247000,-151.0,0.00016438,2]
[421506609,1777780247000,-391.9012,0.00016438,2]
[421506606,1777780247000,-372.859625,0.00016438,2]
[421506605,1777780247000,-372.859625,0.00016438,2]
[421506603,1777780247000,-152.421111,0.00016438,2]
[421506604,1777780247000,-372.859625,0.00016438,2]
[421506602,1777780247000,-372.859625,0.00016438,2]
[421506610,1777780247000,-372.859625,0.00016438,2]
[421506600,1777780247000,-372.859625,0.00016438,2]
[421506597,1777780247000,-151.0,0.00016438,2]
[421506592,1777780247000,-372.859625,0.00016438,2]
[421506593,1777780247000,-151.0,0.00016438,2]
[421506599,1777780247000,-151.0,0.00016438,2]
[421506601,1777780247000,-151.0,0.00016438,2]
[421506653,1777780248000,-283.17235853,0.00017134,2]
[421506652,1777780248000,-150.0799,0.00017125,2]
[421506649,1777780248000,-354.41741338,0.00017013,30]
[421506650,1777780248000,-354.41741338,0.00017089,30]
[421506647,1777780248000,-2063.41285318,0.00017,2]
[421506651,1777780248000,-151.0,0.000171,2]
[421506645,1777780248000,-93024.27277652,0.00017,2]
[421506646,1777780248000,-500.47832511,0.00017,2]
[421506643,1777780248000,-9000.000001,0.0001699,30]
[421506644,1777780248000,-317.0,0.00016991,2]
[421506641,1777780248000,-1596.98084962,0.00016948,2]
[421506642,1777780248000,-1508.0,0.00016988,2]
[421506648,1777780248000,-160.0,0.00017,7]
[421506654,1777780248000,-2641.613389,0.00014219,2]
[421506659,1777780248000,-2063.41285318,0.000172,2]
[421506656,1777780248000,-160.0,0.0001714,30]
[421506655,1777780248000,-1313.80849109,0.00017134,2]
[421506670,1777780248000,-288.62057475,0.00016,2]
[421506669,1777780248000,-959.58055025,0.00016,2]
[421506666,1777780248000,-404.79146375,0.0001493,2]
[421506667,1777780248000,-2265.967128,0.0001493,2]
[421506665,1777780248000,-200.0,0.00014817,2]
[421506664,1777780248000,-3088.02978397,0.00014219,2]
[421506668,1777780248000,-931.44148425,0.0001493,2]
[421506661,1777780248000,-152.262916,0.00013699,2]
[421506662,1777780248000,-1237.25338223,0.00014219,2]
[421506660,1777780248000,-6360.77627157,0.00017222,10]
[421506658,1777780248000,-402.0,0.00017171,2]
[421506657,1777780248000,-354.31741338,0.00017166,30]
[421506663,1777780248000,-797.9436118,0.00014219,2]
[421506683,1777780249000,-391.9012,0.00016438,2]
[421506690,1777780249000,-529.950241,0.00016438,2]
[421506689,1777780249000,-391.9012,0.00016438,2]
[421506684,1777780249000,-529.950241,0.00016438,2]
[421506686,1777780249000,-529.950241,0.00016438,2]
[421506688,1777780249000,-529.950241,0.00016438,2]
[421506687,1777780249000,-391.9012,0.00016438,2]
[421506695,1777780249000,-391.9012,0.00016438,2]
[421506685,1777780249000,-391.9012,0.00016438,2]
[421506678,1777780249000,-529.950241,0.00016438,2]
[421506682,1777780249000,-529.950241,0.00016438,2]
[421506680,1777780249000,-529.950241,0.00016438,2]
[421506677,1777780249000,-391.9012,0.00016438,2]
[421506679,1777780249000,-391.9012,0.00016438,2]
[421506675,1777780249000,-391.9012,0.00016438,2]
[421506673,1777780249000,-529.950241,0.00016438,2]
[421506674,1777780249000,-372.85962656,0.00016438,2]
[421506671,1777780249000,-212.05942525,0.00016352,2]
[421506672,1777780249000,-1661.08461375,0.00016352,2]
[421506692,1777780249000,-529.950241,0.00016438,2]
[421506681,1777780249000,-391.9012,0.00016438,2]
[421506691,1777780249000,-391.9012,0.00016438,2]
[421506676,1777780249000,-529.950241,0.00016438,2]
[421506694,1777780249000,-529.950241,0.00016438,2]
[421506715,1777780249000,-7835.03076403,0.00017222,10]
[421506716,1777780249000,-32862.56227811,0.00017222,10]
[421506714,1777780249000,-391.9012,0.00016438,2]
[421506713,1777780249000,-529.950248,0.00016438,2]
[421506712,1777780249000,-529.950241,0.00016438,2]
[421506717,1777780249000,-9229.35898567,0.00017222,10]
[421506707,1777780249000,-391.9012,0.00016438,2]
[421506710,1777780249000,-529.950241,0.00016438,2]
[421506706,1777780249000,-529.950241,0.00016438,2]
[421506709,1777780249000,-391.9012,0.00016438,2]
[421506711,1777780249000,-391.9012,0.00016438,2]
[421506705,1777780249000,-391.9012,0.00016438,2]
[421506704,1777780249000,-529.950241,0.00016438,2]
[421506703,1777780249000,-529.950241,0.00016438,2]
[421506702,1777780249000,-391.9012,0.00016438,2]
[421506701,1777780249000,-300.0,0.00017222,10]
[421506697,1777780249000,-391.9012,0.00016438,2]
[421506700,1777780249000,-47125.98452258,0.00017222,10]
[421506699,1777780249000,-1000.0,0.00017,2]
[421506698,1777780249000,-1000.0,0.000165,2]
[421506696,1777780249000,-529.950241,0.00016438,2]
[421506708,1777780249000,-529.950241,0.00016438,2]
[421506693,1777780249000,-391.9012,0.00016438,2]
[421506771,1777781432000,-5000.0,0.00010594,2]
[421506773,1777781432000,-282.34715753,0.00010701,2]
[421506832,1777781438000,-520.85938128,0.00010594,2]
[421506901,1777781440000,-300.0,0.00012551,2]
[421506899,1777781440000,-368.66825941,0.00012404,2]
[421506896,1777781440000,-131.33174059,0.00012404,2]
[421506893,1777781440000,-331.08426709,0.00010973,2]
[421506892,1777781440000,-107.89231281,0.00010701,2]
[421506890,1777781440000,-109.43736224,0.00010594,2]
[421506887,1777781440000,-4369.70325648,0.00010594,2]
[421506903,1777781440000,-116.38514242,0.00012551,2]
[421507297,1777781443000,-160.0,0.00012885,2]
[421507286,1777781443000,-300.0,0.00012551,2]
[421507288,1777781443000,-300.0,0.00012551,2]
[421507299,1777781443000,-168.3888056,0.00012902,2]
[421507290,1777781443000,-300.0,0.00012551,2]
[421507292,1777781443000,-300.0,0.00012551,2]
[421507280,1777781443000,-300.0,0.00012551,2]
[421507274,1777781443000,-300.0,0.00012551,2]
[421507284,1777781443000,-300.0,0.00012551,2]
[421507278,1777781443000,-300.0,0.00012551,2]
[421507276,1777781443000,-300.0,0.00012551,2]
[421507266,1777781443000,-183.61485758,0.00012551,2]
[421507272,1777781443000,-300.0,0.00012551,2]
[421507268,1777781443000,-300.0,0.00012551,2]
[421507270,1777781443000,-300.0,0.00012551,2]
[421507282,1777781443000,-300.0,0.00012551,2]
[421507294,1777781443000,-160.0,0.00012885,2]
[421507295,1777781443000,-160.0,0.00012885,2]
[421507305,1777781443000,-557.5788265,0.00012957,2]
[421507303,1777781443000,-2150.738,0.00012902,2]
[421507330,1777781443000,-801.85129955,0.00013507,2]
[421507331,1777781443000,-49.15166078,0.00013698,2]
[421507328,1777781443000,-76.15789587,0.00013452,2]
[421507325,1777781443000,-697.08347303,0.00013452,2]
[421507315,1777781443000,-557.36345976,0.00013287,2]
[421507317,1777781443000,-136.02851654,0.00013287,2]
[421507322,1777781443000,-745.65223616,0.00013397,2]
[421507324,1777781443000,-2230.315306,0.0001345,2]
[421507313,1777781443000,-668.65185757,0.00013232,2]
[421507311,1777781443000,-644.79446246,0.00013177,2]
[421507309,1777781443000,-621.78829552,0.00013122,2]
[421507308,1777781443000,-599.60298507,0.00013067,2]
[421507306,1777781443000,-390.67943517,0.00012973,2]
[421507307,1777781443000,-578.20924308,0.00013012,2]
[421507301,1777781443000,-537.6845,0.00012902,2]
[421507319,1777781443000,-719.04747942,0.00013342,2]
[421507697,1777781446000,-442.0,0.00013916,2]
[421507715,1777781446000,-450.27460325,0.00014973,2]
[421507701,1777781446000,-167.07741502,0.00014303,2]
[421507699,1777781446000,-2312.83697232,0.00013998,2]
[421507703,1777781446000,-10000.0,0.00014487,2]
[421507705,1777781446000,-3200.709873,0.000145,2]
[421507713,1777781446000,-397.0,0.000146,2]
[421507695,1777781446000,-185.0,0.00013916,2]
[421507682,1777781446000,-1000.0,0.00013699,2]
[421507710,1777781446000,-2398.4119403,0.00014546,2]
[421507707,1777781446000,-500.0,0.00014509,2]
[421507693,1777781446000,-740.0,0.00013916,2]
[421507691,1777781446000,-1422.331,0.00013916,2]
[421507689,1777781446000,-150.113,0.00013909,2]
[421507687,1777781446000,-603.12328687,0.00013892,2]
[421507680,1777781446000,-450.84833922,0.00013698,2]
[421507717,1777781446000,-231.97928623,0.00015094,2]
[421507685,1777781446000,-1000.0,0.00013699,2]
[421507709,1777781446000,-500.0,0.00014509,2]
[421507719,1777781446000,-4804.33692884,0.000159,2]
[421507726,1777781446000,-500.0,0.00015999,2]
[421507720,1777781446000,-455.6275209,0.00015906,2]
[421507752,1777781446000,-825.36514127,0.000165,2]
[421507754,1777781446000,-825.36514127,0.000166,2]
[421507750,1777781446000,-150.0799,0.0001646,2]
[421507748,1777781446000,-620.79,0.00016338,2]
[421507756,1777781446000,-456.2076372,0.00016626,2]
[421507761,1777781446000,-18.95205048,0.00016691,2]
[421507725,1777781446000,-500.0,0.00015999,2]
[421507746,1777781446000,-187.599,0.00016337,2]
[421507758,1777781446000,-456.159554,0.00016626,2]
[421507759,1777781446000,-800.0,0.00016662,2]
[421507742,1777781446000,-825.36514127,0.000162,2]
[421507744,1777781446000,-825.36514127,0.000163,2]
[421507732,1777781446000,-217.344168,0.00016,2]
[421507728,1777781446000,-500.07065489,0.00015999,2]
[421507730,1777781446000,-825.36514127,0.00016,2]
[421507722,1777781446000,-500.0,0.00015999,2]
[421507734,1777781446000,-35926.11161717,0.00016,2]
[421507738,1777781446000,-184.87793298,0.00016112,7]
[421507740,1777781446000,-150.0799,0.00016137,2]
[421507736,1777781446000,-242.09816315,0.00016012,2]
[421508684,1777782632000,-300.0,0.00011525,2]
[421508679,1777782632000,-375.42873289,0.00010854,2]
[421508681,1777782632000,-4624.57126711,0.00010854,2]
[421508683,1777782632000,-5059.2178801,0.000113,2]
[421508686,1777782632000,-300.0,0.00011525,2]
[421508682,1777782632000,-311.00283139,0.00011159,2]
[421508685,1777782632000,-300.0,0.00011525,2]
[421508688,1777782632000,-300.0,0.00011525,2]
[421508690,1777782632000,-300.0,0.00011525,2]
[421508695,1777782632000,-236.17171522,0.00011525,2]
[421508693,1777782632000,-48.98478215,0.00011525,2]
[421508687,1777782632000,-300.0,0.00011525,2]
[421508691,1777782632000,-300.0,0.00011525,2]
[421508694,1777782632000,-251.01521785,0.00011525,2]
[421508692,1777782632000,-300.0,0.00011525,2]
[421508742,1777782638000,-300.0,0.00011525,2]
[421508744,1777782638000,-230.34015272,0.00011525,2]
[421508740,1777782638000,-63.82828478,0.00011525,2]
[421508989,1777782674000,-1306.9710193,0.00011296,2]
[421508990,1777783589000,1649.55,8.01e-05,2]
[421509043,1777783832000,-300.0,0.00011637,2]
[421509041,1777783832000,-305.93,0.00011637,2]
[421509045,1777783832000,-300.0,0.00011637,2]
[421509035,1777783832000,-3348.07342756,9.619e-05,2]
[421509037,1777783832000,-1651.92657244,9.619e-05,2]
[421509026,1777783832000,-524.89100133,9.428e-05,2]
[421509024,1777783832000,-415.5682228,9.428e-05,2]
[421509029,1777783832000,-169.69596573,9.523e-05,2]
[421509033,1777783832000,-300.0,9.618e-05,2]
[421509047,1777783832000,-300.0,0.00011637,2]
[421509031,1777783832000,-4830.30403427,9.523e-05,2]
[421509057,1777783832000,-6.27000483,0.00011637,2]
[421509039,1777783832000,-472.0,9.619e-05,2]
[421509049,1777783832000,-300.0,0.00011637,2]
[421509059,1777783832000,-300.0,0.00011637,2]
[421509074,1777783832000,-55.81175747,0.00011765,2]
[421509073,1777783832000,-300.0,0.00011637,2]
[421509067,1777783832000,-300.0,0.00011637,2]
[421509063,1777783832000,-300.0,0.00011637,2]
[421509060,1777783832000,-300.0,0.00011637,2]
[421509069,1777783832000,-300.0,0.00011637,2]
[421509071,1777783832000,-300.0,0.00011637,2]
[421509053,1777783832000,-300.0,0.00011637,2]
[421509055,1777783832000,-293.72999517,0.00011637,2]
[421509051,1777783832000,-300.0,0.00011637,2]
[421509065,1777783832000,-300.0,0.00011637,2]
[421509129,1777783838000,-1286.46414784,0.00014175,2]
[421509135,1777783838000,-2524.25698595,0.00014771,2]
[421509133,1777783838000,-10000.0,0.00014487,2]
[421509120,1777783838000,-151.26,0.00013978,2]